[Event "Live Chess"]
[Site "Chess.com"]
[Date "2023.05.20"]
[Round "-"]
[White "profpirate4"]
[Black "john_chandler"]
[Result "1-0"]
[WhiteElo "966"]
[BlackElo "804"]
[TimeControl "300"]
[EndTime "10:13:10 PDT"]
[Termination "profpirate4 won on time"]

1. d4 {[%clk 0:04:57.8]} 1... d5 {[%clk 0:04:58.1]} 2. c4 {[%clk 0:04:56.7]}
2... c6 {[%clk 0:04:57.2]} 3. Nc3 {[%clk 0:04:55.4]} 3... Nf6 {[%clk 0:04:55.9]}
4. e3 {[%clk 0:04:54.2]} 4... Bg4 {[%clk 0:04:54]} 5. Nf3 {[%clk 0:04:49.6]}
5... e6 {[%clk 0:04:49.2]} 6. cxd5 {[%clk 0:04:47.8]} 6... cxd5 {[%clk
0:04:41.8]} 7. h3 {[%clk 0:04:44.9]} 7... Bh5 {[%clk 0:04:35.7]} 8. Be2 {[%clk
0:04:39.8]} 8... Bb4 {[%clk 0:04:32.1]} 9. Ne5 {[%clk 0:03:59.9]} 9... Bxe2
{[%clk 0:04:23.2]} 10. Qxe2 {[%clk 0:03:58.9]} 10... O-O {[%clk 0:04:08.7]} 11.
a3 {[%clk 0:03:55.6]} 11... Bxc3+ {[%clk 0:04:01.1]} 12. bxc3 {[%clk 0:03:54]}
12... Qb6 {[%clk 0:03:40.4]} 13. Bd2 {[%clk 0:03:40.2]} 13... Na6 {[%clk
0:03:16.4]} 14. O-O {[%clk 0:03:34.2]} 14... Qc7 {[%clk 0:03:01.5]} 15. Rfb1
{[%clk 0:03:24.8]} 15... Ne4 {[%clk 0:02:44.4]} 16. Be1 {[%clk 0:03:02.4]} 16...
Nxc3 {[%clk 0:02:38.8]} 17. Bxc3 {[%clk 0:02:57.2]} 17... Qxc3 {[%clk
0:02:34.7]} 18. Rc1 {[%clk 0:02:56.1]} 18... Qb3 {[%clk 0:02:17.8]} 19. Rcb1
{[%clk 0:02:43.8]} 19... Qa4 {[%clk 0:02:06]} 20. Rxb7 {[%clk 0:02:42.2]} 20...
Qe8 {[%clk 0:01:33]} 21. Rab1 {[%clk 0:02:36.5]} 21... Qc8 {[%clk 0:01:01.1]}
22. Qxa6 {[%clk 0:02:29.8]} 22... Qc2 {[%clk 0:00:47.5]} 23. Nd7 {[%clk
0:02:12.9]} 23... Rfc8 {[%clk 0:00:33.7]} 24. Nc5 {[%clk 0:02:10.6]} 24... h6
{[%clk 0:00:19.6]} 25. Qf1 {[%clk 0:01:48.5]} 25... a5 {[%clk 0:00:10.4]} 26.
R7b2 {[%clk 0:01:27.4]} 26... Qc4 {[%clk 0:00:07.2]} 27. Rc1 {[%clk 0:01:17.2]}
27... Qxf1+ {[%clk 0:00:00.5]} 28. Rxf1 {[%clk 0:01:15.9]} 1-0

[Event "Live Chess"]
[Site "Chess.com"]
[Date "2023.05.20"]
[Round "-"]
[White "Singapourfeuj"]
[Black "Conradical12"]
[Result "0-1"]
[WhiteElo "2246"]
[BlackElo "1523"]
[TimeControl "300"]
[EndTime "10:13:13 PDT"]
[Termination "Conradical12 won by resignation"]

1. d4 {[%clk 0:04:58.4]} 1... d5 {[%clk 0:04:58.1]} 2. c4 {[%clk 0:04:57.3]}
2... Nf6 {[%clk 0:04:57]} 3. Nf3 {[%clk 0:04:56.6]} 3... e6 {[%clk 0:04:55.8]}
4. Bg5 {[%clk 0:04:55.6]} 4... Nbd7 {[%clk 0:04:54]} 5. Nc3 {[%clk 0:04:54.9]}
5... Bb4 {[%clk 0:04:50.7]} 6. cxd5 {[%clk 0:04:53.8]} 6... exd5 {[%clk
0:04:49.1]} 7. Qb3 {[%clk 0:04:53.1]} 7... Qe7 {[%clk 0:04:46]} 8. e3 {[%clk
0:04:52.2]} 8... c6 {[%clk 0:04:44.6]} 9. Be2 {[%clk 0:04:51.1]} 9... O-O {[%clk
0:04:43.6]} 10. O-O {[%clk 0:04:49.9]} 10... a5 {[%clk 0:04:42.8]} 11. a3 {[%clk
0:04:48.6]} 11... Bd6 {[%clk 0:04:38.6]} 12. h3 {[%clk 0:04:46]} 12... b5 {[%clk
0:04:37.6]} 13. Rac1 {[%clk 0:04:43.9]} 13... Bb7 {[%clk 0:04:35.8]} 14. a4
{[%clk 0:04:42.3]} 14... b4 {[%clk 0:04:34]} 15. Nb1 {[%clk 0:04:40.5]} 15...
Ba6 {[%clk 0:04:32.9]} 16. Bxa6 {[%clk 0:04:37.6]} 16... Rxa6 {[%clk 0:04:31.6]}
17. Nbd2 {[%clk 0:04:36.6]} 17... Rc8 {[%clk 0:04:27.6]} 18. Rc2 {[%clk
0:04:35]} 18... Nb6 {[%clk 0:04:24.9]} 19. Rfc1 {[%clk 0:04:33.2]} 19... c5
{[%clk 0:04:17.8]} 20. dxc5 {[%clk 0:04:30.3]} 20... Bxc5 {[%clk 0:04:14.5]} 21.
Bxf6 {[%clk 0:04:29.3]} 21... gxf6 {[%clk 0:04:13.2]} 22. Qd3 {[%clk 0:04:27.9]}
22... Ra7 {[%clk 0:03:48.9]} 23. Qb5 {[%clk 0:04:24.5]} 23... Rac7 {[%clk
0:03:45.7]} 24. Qxa5 {[%clk 0:04:17.1]} 24... Kh8 {[%clk 0:03:34.2]} 25. Qb5
{[%clk 0:04:07.6]} 25... Rg8 {[%clk 0:03:28.2]} 26. a5 {[%clk 0:04:04.5]} 26...
Nc4 {[%clk 0:03:11]} 27. Nxc4 {[%clk 0:04:02.2]} 27... dxc4 {[%clk 0:03:09.6]}
28. Rxc4 {[%clk 0:04:00.6]} 28... Bd6 {[%clk 0:02:54.8]} 29. Rxc7 {[%clk
0:03:57.3]} 29... Bxc7 {[%clk 0:02:53.8]} 30. a6 {[%clk 0:03:50.9]} 30... Qe4
{[%clk 0:02:52]} 31. Qc6 {[%clk 0:03:47.8]} 31... Qg6 {[%clk 0:02:48.1]} 32. Nh4
{[%clk 0:03:42.1]} 32... Qg5 {[%clk 0:02:46.9]} 33. Qxc7 {[%clk 0:03:38.9]}
33... Qxh4 {[%clk 0:02:45.6]} 34. a7 {[%clk 0:03:30.2]} 34... Qe4 {[%clk
0:02:40.8]} 35. Qb7 {[%clk 0:03:26.9]} 35... Qxb7 {[%clk 0:02:38.3]} 0-1

[Event "Live Chess"]
[Site "Chess.com"]
[Date "2023.05.20"]
[Round "-"]
[White "risinghelios"]
[Black "LutherSullivan"]
[Result "0-1"]
[WhiteElo "1943"]
[BlackElo "1849"]
[TimeControl "300"]
[EndTime "10:13:15 PDT"]
[Termination "LutherSullivan won by resignation"]

1. e4 {[%clk 0:04:59.3]} 1... c5 {[%clk 0:04:52.1]} 2. d4 {[%clk 0:04:57.4]}
2... cxd4 {[%clk 0:04:50.7]} 3. Nf3 {[%clk 0:04:56.7]} 3... Nc6 {[%clk
0:04:43.7]} 4. Nxd4 {[%clk 0:04:54.3]} 4... g6 {[%clk 0:04:42.7]} 5. Nxc6 {[%clk
0:04:53.6]} 5... bxc6 {[%clk 0:04:41.4]} 6. Nc3 {[%clk 0:04:52.5]} 6... Bg7
{[%clk 0:04:40.1]} 7. Bd2 {[%clk 0:04:48.5]} 7... e6 {[%clk 0:04:38.5]} 8. Bd3
{[%clk 0:04:47.1]} 8... d5 {[%clk 0:04:37.6]} 9. exd5 {[%clk 0:04:45.9]} 9...
cxd5 {[%clk 0:04:36.3]} 10. O-O {[%clk 0:04:45.4]} 10... Ne7 {[%clk 0:04:35.7]}
11. Re1 {[%clk 0:04:42]} 11... O-O {[%clk 0:04:34.6]} 12. Bg5 {[%clk 0:04:36.5]}
12... h6 {[%clk 0:04:27.6]} 13. Bxe7 {[%clk 0:04:35]} 13... Qxe7 {[%clk
0:04:25.3]} 14. Nxd5 {[%clk 0:04:34.5]} 14... Qb7 {[%clk 0:04:15.1]} 15. Nc3
{[%clk 0:04:32.2]} 15... Qxb2 {[%clk 0:04:11.6]} 16. Ne4 {[%clk 0:04:30.6]}
16... Qxa1 {[%clk 0:04:08.3]} 17. Qxa1 {[%clk 0:04:30]} 17... Bxa1 {[%clk
0:04:07.8]} 18. Rxa1 {[%clk 0:04:29.7]} 18... Bb7 {[%clk 0:04:06]} 19. Nd6
{[%clk 0:04:28.3]} 19... Bc6 {[%clk 0:04:03.5]} 20. Rd1 {[%clk 0:04:25.1]} 20...
Rfd8 {[%clk 0:03:59]} 21. Bc4 {[%clk 0:04:22.4]} 21... Bd5 {[%clk 0:03:54.5]}
22. Bxd5 {[%clk 0:04:12.6]} 22... Rxd6 {[%clk 0:03:51.2]} 23. Bf3 {[%clk
0:04:11.3]} 23... Rxd1+ {[%clk 0:03:44.6]} 24. Bxd1 {[%clk 0:04:11.2]} 24... Rb8
{[%clk 0:03:43.3]} 25. Kf1 {[%clk 0:04:10.5]} 25... Rb2 {[%clk 0:03:40.3]} 26.
Be2 {[%clk 0:04:09.1]} 26... Rb1+ {[%clk 0:03:37.9]} 0-1

[Event "Live Chess"]
[Site "Chess.com"]
[Date "2023.05.20"]
[Round "-"]
[White "Driftboard"]
[Black "toog"]
[Result "0-1"]
[WhiteElo "660"]
[BlackElo "2638"]
[TimeControl "300"]
[EndTime "10:13:21 PDT"]
[Termination "toog won by checkmate"]

1. e4 {[%clk 0:04:58.5]} 1... c6 {[%clk 0:04:57.4]} 2. Nf3 {[%clk 0:04:56.7]}
2... d5 {[%clk 0:04:57.3]} 3. exd5 {[%clk 0:04:55.3]} 3... cxd5 {[%clk
0:04:57.2]} 4. Nc3 {[%clk 0:04:54.2]} 4... Nf6 {[%clk 0:04:55.3]} 5. Bb5+ {[%clk
0:04:42.5]} 5... Bd7 {[%clk 0:04:54.1]} 6. Bxd7+ {[%clk 0:04:41.3]} 6... Nbxd7
{[%clk 0:04:53.6]} 7. O-O {[%clk 0:04:40.4]} 7... e6 {[%clk 0:04:52.4]} 8. d3
{[%clk 0:04:39.7]} 8... Bd6 {[%clk 0:04:51.8]} 9. Bg5 {[%clk 0:04:38.8]} 9...
O-O {[%clk 0:04:51.2]} 10. Bxf6 {[%clk 0:04:38]} 10... Nxf6 {[%clk 0:04:49.7]}
11. h3 {[%clk 0:04:37.7]} 11... Rc8 {[%clk 0:04:48.3]} 12. a3 {[%clk 0:04:33.3]}
12... a6 {[%clk 0:04:47.7]} 13. Qd2 {[%clk 0:04:31]} 13... Qb6 {[%clk
0:04:46.7]} 14. Rfe1 {[%clk 0:04:25.9]} 14... Qxb2 {[%clk 0:04:45.4]} 15. Ra2
{[%clk 0:04:13.9]} 15... Qxc3 {[%clk 0:04:43.5]} 16. Qxc3 {[%clk 0:04:12.1]}
16... Rxc3 {[%clk 0:04:43.4]} 17. a4 {[%clk 0:04:04.7]} 17... Rfc8 {[%clk
0:04:41.4]} 18. Nd4 {[%clk 0:03:51.1]} 18... Bc5 {[%clk 0:04:39.4]} 19. Nb3
{[%clk 0:03:45.7]} 19... Ba7 {[%clk 0:04:34.6]} 20. Rc1 {[%clk 0:03:35.1]} 20...
Rxb3 {[%clk 0:04:32.7]} 21. cxb3 {[%clk 0:03:31.2]} 21... Rxc1+ {[%clk
0:04:29.3]} 22. Kh2 {[%clk 0:03:30.7]} 22... h5 {[%clk 0:04:28.2]} 23. Kg3
{[%clk 0:03:26.9]} 23... g5 {[%clk 0:04:24.7]} 24. h4 {[%clk 0:03:25.1]} 24...
gxh4+ {[%clk 0:04:20.7]} 25. Kxh4 {[%clk 0:03:23.8]} 25... Kg7 {[%clk
0:04:20.6]} 26. f3 {[%clk 0:03:19.3]} 26... Kg6 {[%clk 0:04:19.8]} 27. g4 {[%clk
0:03:18.1]} 27... hxg4 {[%clk 0:04:14.9]} 28. fxg4 {[%clk 0:03:14.9]} 28... Rg1
{[%clk 0:04:14.8]} 29. Rf2 {[%clk 0:03:02.4]} 29... Bxf2+ {[%clk 0:04:12.5]} 30.
Kh3 {[%clk 0:03:00.1]} 30... Rg3+ {[%clk 0:04:12.4]} 31. Kh2 {[%clk 0:02:59]}
31... Nxg4+ {[%clk 0:04:12.3]} 32. Kh1 {[%clk 0:02:57.7]} 32... Rg1# {[%clk
0:04:12.2]} 0-1

[Event "Live Chess"]
[Site "Chess.com"]
[Date "2023.05.20"]
[Round "-"]
[White "lightningorderyt"]
[Black "Horseymobile"]
[Result "0-1"]
[WhiteElo "534"]
[BlackElo "1250"]
[TimeControl "300"]
[EndTime "10:13:32 PDT"]
[Termination "Horseymobile won by checkmate"]

1. e4 {[%clk 0:04:55.1]} 1... c6 {[%clk 0:04:58.1]} 2. Nc3 {[%clk 0:04:52.9]}
2... d5 {[%clk 0:04:57]} 3. Nf3 {[%clk 0:04:46]} 3... dxe4 {[%clk 0:04:55.2]} 4.
Nxe4 {[%clk 0:04:41.6]} 4... Bf5 {[%clk 0:04:54.6]} 5. d3 {[%clk 0:04:35]} 5...
Nf6 {[%clk 0:04:51.7]} 6. Nxf6+ {[%clk 0:04:28.5]} 6... exf6 {[%clk 0:04:51.6]}
7. g4 {[%clk 0:04:18.1]} 7... Bxg4 {[%clk 0:04:45.7]} 8. Bf4 {[%clk 0:04:00.9]}
8... Qd5 {[%clk 0:04:29.7]} 9. Qe2+ {[%clk 0:03:42.3]} 9... Be7 {[%clk
0:04:24.2]} 10. O-O-O {[%clk 0:03:36.4]} 10... Bxf3 {[%clk 0:04:21.9]} 11. Qd2
{[%clk 0:03:19.4]} 11... Bxh1 {[%clk 0:04:15.3]} 12. Bh3 {[%clk 0:03:09.7]}
12... Bf3 {[%clk 0:04:07.3]} 13. Re1 {[%clk 0:03:04.2]} 13... Qc5 {[%clk
0:03:43.7]} 14. Be3 {[%clk 0:02:41.3]} 14... Qd5 {[%clk 0:03:33.3]} 15. c4
{[%clk 0:02:31.7]} 15... Qe5 {[%clk 0:03:28.7]} 16. d4 {[%clk 0:02:18.9]} 16...
Qxh2 {[%clk 0:03:24]} 17. Bf5 {[%clk 0:02:06.9]} 17... O-O {[%clk 0:03:17.4]}
18. Qd3 {[%clk 0:01:59.5]} 18... Bb4 {[%clk 0:03:04]} 19. Rd1 {[%clk 0:01:34.3]}
19... Bxd1 {[%clk 0:02:58.1]} 20. Kxd1 {[%clk 0:01:32.8]} 20... Qg1+ {[%clk
0:02:55.3]} 21. Ke2 {[%clk 0:01:27.9]} 21... Qe1+ {[%clk 0:02:53.4]} 22. Kf3
{[%clk 0:01:25.1]} 22... Qh1+ {[%clk 0:02:45.1]} 23. Kg3 {[%clk 0:01:14.2]}
23... Bd6+ {[%clk 0:02:40.6]} 24. Bf4 {[%clk 0:01:08.7]} 24... Qg1+ {[%clk
0:02:38.7]} 25. Kf3 {[%clk 0:01:04.8]} 25... Qh1+ {[%clk 0:02:29.1]} 26. Ke2
{[%clk 0:01:02.1]} 26... Bxf4 {[%clk 0:02:25.9]} 27. Be4 {[%clk 0:00:54.9]}
27... Qh5+ {[%clk 0:02:22.3]} 28. Bf3 {[%clk 0:00:50.9]} 28... Re8+ {[%clk
0:02:21.4]} 29. Kd1 {[%clk 0:00:48.9]} 29... Qh2 {[%clk 0:02:13.4]} 30. Be2
{[%clk 0:00:29.7]} 30... Qg1+ {[%clk 0:02:07.8]} 31. Bf1 {[%clk 0:00:24.3]}
31... Na6 {[%clk 0:02:02.7]} 32. Qh3 {[%clk 0:00:17.4]} 32... Qxf2 {[%clk
0:01:55.5]} 33. Qg2 {[%clk 0:00:14.3]} 33... Re1# {[%clk 0:01:50.5]} 0-1

[Event "Live Chess"]
[Site "Chess.com"]
[Date "2023.05.20"]
[Round "-"]
[White "Tema1107"]
[Black "KuriyamaMiraiUA"]
[Result "1-0"]
[WhiteElo "1983"]
[BlackElo "655"]
[TimeControl "300"]
[EndTime "10:13:36 PDT"]
[Termination "Tema1107 won by checkmate"]

1. d4 {[%clk 0:04:58.8]} 1... d5 {[%clk 0:04:57.7]} 2. c4 {[%clk 0:04:54.3]}
2... c5 {[%clk 0:04:56.9]} 3. dxc5 {[%clk 0:04:47.6]} 3... dxc4 {[%clk
0:04:49.3]} 4. Qa4+ {[%clk 0:04:45.3]} 4... Bd7 {[%clk 0:04:41.9]} 5. Qxc4
{[%clk 0:04:43.7]} 5... e5 {[%clk 0:04:36.6]} 6. Nc3 {[%clk 0:04:26.3]} 6... Nc6
{[%clk 0:04:32.4]} 7. Nf3 {[%clk 0:04:23.8]} 7... Nf6 {[%clk 0:04:26.9]} 8. Bg5
{[%clk 0:04:20.5]} 8... Be7 {[%clk 0:04:22.1]} 9. Bxf6 {[%clk 0:04:17.4]} 9...
Bxf6 {[%clk 0:04:21.3]} 10. O-O-O {[%clk 0:04:15]} 10... O-O {[%clk 0:04:20]}
11. g4 {[%clk 0:04:09.3]} 11... Na5 {[%clk 0:04:06.7]} 12. Qb4 {[%clk
0:04:03.2]} 12... Rc8 {[%clk 0:03:52.9]} 13. h4 {[%clk 0:03:53.4]} 13... Be7
{[%clk 0:03:51.3]} 14. Nxe5 {[%clk 0:03:47.5]} 14... Bxc5 {[%clk 0:03:47.2]} 15.
Qf4 {[%clk 0:03:42.8]} 15... Rc7 {[%clk 0:03:28.4]} 16. g5 {[%clk 0:03:33.6]}
16... g6 {[%clk 0:03:26.8]} 17. Bh3 {[%clk 0:03:30.1]} 17... f5 {[%clk
0:03:19.5]} 18. gxf6 {[%clk 0:03:26.4]} 18... Rf7 {[%clk 0:03:17.1]} 19. Be6
{[%clk 0:03:14.9]} 19... Qxf6 {[%clk 0:03:02]} 20. Qxf6 {[%clk 0:03:11.3]} 20...
Bxe6 {[%clk 0:02:57.1]} 21. Qxe6 {[%clk 0:03:06.2]} 21... Bxf2 {[%clk
0:02:52.2]} 22. Rd8+ {[%clk 0:03:02.8]} 22... Kg7 {[%clk 0:02:49.2]} 23. Nxf7
{[%clk 0:03:01]} 23... Rxf7 {[%clk 0:02:48.1]} 24. Rd7 {[%clk 0:03:00]} 24...
Rxd7 {[%clk 0:02:44.1]} 25. Qxd7+ {[%clk 0:02:59.9]} 25... Kh6 {[%clk
0:02:42.8]} 26. Ne4 {[%clk 0:02:47.8]} 26... Be3+ {[%clk 0:02:37.8]} 27. Kb1
{[%clk 0:02:46.3]} 27... Nc4 {[%clk 0:02:35.3]} 28. Ng5 {[%clk 0:02:40.7]} 28...
Nd2+ {[%clk 0:02:22.8]} 29. Kc2 {[%clk 0:02:38.2]} 29... Nc4 {[%clk 0:02:15.5]}
30. Qxh7# {[%clk 0:02:36.2]} 1-0

[Event "Live Chess"]
[Site "Chess.com"]
[Date "2023.05.20"]
[Round "-"]
[White "Ian-Morley"]
[Black "siddu198"]
[Result "0-1"]
[WhiteElo "1034"]
[BlackElo "1611"]
[TimeControl "300"]
[EndTime "10:13:36 PDT"]
[Termination "siddu198 won by checkmate"]

1. e4 {[%clk 0:04:58.2]} 1... d5 {[%clk 0:04:59.9]} 2. exd5 {[%clk 0:04:57.3]}
2... Qxd5 {[%clk 0:04:59.8]} 3. d4 {[%clk 0:04:56.5]} 3... Qd8 {[%clk
0:04:59.7]} 4. Nc3 {[%clk 0:04:55.9]} 4... Bf5 {[%clk 0:04:57.9]} 5. g3 {[%clk
0:04:55.4]} 5... Nf6 {[%clk 0:04:52.1]} 6. Bg2 {[%clk 0:04:54.5]} 6... c6 {[%clk
0:04:45.7]} 7. d5 {[%clk 0:04:51.7]} 7... cxd5 {[%clk 0:04:34.8]} 8. Nxd5 {[%clk
0:04:50.8]} 8... Nc6 {[%clk 0:04:30.1]} 9. Nxf6+ {[%clk 0:04:49.4]} 9... exf6
{[%clk 0:04:28.1]} 10. Qxd8+ {[%clk 0:04:48.3]} 10... Rxd8 {[%clk 0:04:27]} 11.
Bxc6+ {[%clk 0:04:46.5]} 11... bxc6 {[%clk 0:04:26.9]} 12. c3 {[%clk 0:04:45.8]}
12... Be4 {[%clk 0:04:25.3]} 13. f3 {[%clk 0:04:43.8]} 13... Bd3 {[%clk
0:04:21]} 14. Kf2 {[%clk 0:04:40.7]} 14... Bc5+ {[%clk 0:04:19.8]} 15. Kg2
{[%clk 0:04:38.7]} 15... O-O {[%clk 0:04:15.5]} 16. b4 {[%clk 0:04:36.1]} 16...
Bb6 {[%clk 0:04:13]} 17. a4 {[%clk 0:04:27.9]} 17... a5 {[%clk 0:03:58.1]} 18.
bxa5 {[%clk 0:04:26.2]} 18... Bxa5 {[%clk 0:03:58]} 19. c4 {[%clk 0:04:25.2]}
19... Bxc4 {[%clk 0:03:53.4]} 20. Bf4 {[%clk 0:04:22.7]} 20... Bd2 {[%clk
0:03:47.8]} 21. Rb1 {[%clk 0:04:19.5]} 21... Bxf4 {[%clk 0:03:44.3]} 22. gxf4
{[%clk 0:04:18.6]} 22... Rd2+ {[%clk 0:03:40.8]} 23. Kg3 {[%clk 0:04:16.9]}
23... Ra2 {[%clk 0:03:34.3]} 24. Rc1 {[%clk 0:04:14.1]} 24... Bd5 {[%clk
0:03:33]} 25. Ne2 {[%clk 0:04:09.6]} 25... Rxe2 {[%clk 0:03:31.3]} 26. a5 {[%clk
0:04:07.3]} 26... Ra2 {[%clk 0:03:30.3]} 27. Rhe1 {[%clk 0:04:04.1]} 27... Rxa5
{[%clk 0:03:29.3]} 28. Re7 {[%clk 0:04:01.7]} 28... Ra3 {[%clk 0:03:28.6]} 29.
Kg4 {[%clk 0:03:58.8]} 29... Bxf3+ {[%clk 0:03:26.7]} 30. Kf5 {[%clk 0:03:58]}
30... g6+ {[%clk 0:03:21]} 31. Kxf6 {[%clk 0:03:52.5]} 31... Ra5 {[%clk
0:03:20.3]} 32. f5 {[%clk 0:03:47]} 32... Rxf5# {[%clk 0:03:19.1]} 0-1

[Event "Live Chess"]
[Site "Chess.com"]
[Date "2023.05.20"]
[Round "-"]
[White "Nazarenko_vital"]
[Black "ClassyChameleon"]
[Result "1-0"]
[WhiteElo "1588"]
[BlackElo "1042"]
[TimeControl "300"]
[EndTime "10:13:39 PDT"]
[Termination "Nazarenko_vital won by checkmate"]

1. e4 {[%clk 0:04:57.1]} 1... e5 {[%clk 0:04:58.4]} 2. Nf3 {[%clk 0:04:55.2]}
2... Nc6 {[%clk 0:04:57.5]} 3. d4 {[%clk 0:04:54]} 3... Nxd4 {[%clk 0:04:53.5]}
4. Nxd4 {[%clk 0:04:52.9]} 4... exd4 {[%clk 0:04:53]} 5. Qxd4 {[%clk 0:04:51.9]}
5... Nf6 {[%clk 0:04:49]} 6. Nc3 {[%clk 0:04:50.6]} 6... Be7 {[%clk 0:04:41.7]}
7. Bf4 {[%clk 0:04:43.3]} 7... O-O {[%clk 0:04:39.6]} 8. Bd3 {[%clk 0:04:33.6]}
8... c5 {[%clk 0:04:31.5]} 9. Qe3 {[%clk 0:04:29]} 9... d5 {[%clk 0:04:15.5]}
10. e5 {[%clk 0:04:25.8]} 10... Nh5 {[%clk 0:04:08.9]} 11. Ne2 {[%clk
0:04:07.8]} 11... c4 {[%clk 0:03:40.8]} 12. Bxh7+ {[%clk 0:03:56.3]} 12... Kxh7
{[%clk 0:03:38.1]} 13. O-O-O {[%clk 0:03:36.4]} 13... Qa5 {[%clk 0:03:27.5]} 14.
Bg5 {[%clk 0:02:58.1]} 14... Bc5 {[%clk 0:03:16.1]} 15. Qf3 {[%clk 0:02:52.4]}
15... Be6 {[%clk 0:03:00.2]} 16. Qxh5+ {[%clk 0:02:48]} 16... Kg8 {[%clk
0:02:57.5]} 17. Bf6 {[%clk 0:02:41.9]} 17... Qxa2 {[%clk 0:02:18.5]} 18. Qg5
{[%clk 0:02:32.1]} 18... g6 {[%clk 0:02:09.6]} 19. Qh4 {[%clk 0:02:25.1]} 19...
Be3+ {[%clk 0:01:42.1]} 20. fxe3 {[%clk 0:02:19.9]} 20... Qa1+ {[%clk
0:01:35.1]} 21. Kd2 {[%clk 0:02:18.3]} 21... Qxd1+ {[%clk 0:01:34.6]} 22. Kxd1
{[%clk 0:02:13.2]} 22... Bg4 {[%clk 0:01:31.4]} 23. Qh8# {[%clk 0:02:09.4]} 1-0

[Event "Live Chess"]
[Site "Chess.com"]
[Date "2023.05.20"]
[Round "-"]
[White "Supertromp"]
[Black "KeithArkell"]
[Result "0-1"]
[WhiteElo "2169"]
[BlackElo "2611"]
[TimeControl "300"]
[EndTime "10:13:40 PDT"]
[Termination "KeithArkell won on time"]

1. e4 {[%clk 0:04:56.8]} 1... c6 {[%clk 0:04:58.8]} 2. d4 {[%clk 0:04:55.5]}
2... d5 {[%clk 0:04:57.7]} 3. exd5 {[%clk 0:04:54.7]} 3... cxd5 {[%clk 0:04:57]}
4. Bd3 {[%clk 0:04:53.7]} 4... Nf6 {[%clk 0:04:56.2]} 5. Bf4 {[%clk 0:04:51.6]}
5... Nc6 {[%clk 0:04:55.5]} 6. c3 {[%clk 0:04:50.4]} 6... Bg4 {[%clk 0:04:54.1]}
7. Qb3 {[%clk 0:04:48.9]} 7... Qd7 {[%clk 0:04:52.8]} 8. Nd2 {[%clk 0:04:47]}
8... e6 {[%clk 0:04:52.1]} 9. Ngf3 {[%clk 0:04:09]} 9... Bxf3 {[%clk 0:04:51.1]}
10. Nxf3 {[%clk 0:04:07.9]} 10... Bd6 {[%clk 0:04:49.7]} 11. Ne5 {[%clk
0:03:55.6]} 11... Qc7 {[%clk 0:04:48.4]} 12. Bb5 {[%clk 0:03:35.3]} 12... Nh5
{[%clk 0:04:45.8]} 13. g3 {[%clk 0:03:23.3]} 13... Nxf4 {[%clk 0:04:43]} 14.
gxf4 {[%clk 0:03:22.5]} 14... O-O {[%clk 0:04:40.6]} 15. Bd3 {[%clk 0:02:39]}
15... f6 {[%clk 0:04:35.1]} 16. Ng4 {[%clk 0:02:28.5]} 16... Bxf4 {[%clk
0:04:31.7]} 17. Qd1 {[%clk 0:02:00.7]} 17... f5 {[%clk 0:04:26.9]} 18. Ne3
{[%clk 0:01:56.7]} 18... Bxe3 {[%clk 0:04:26.2]} 19. fxe3 {[%clk 0:01:55.6]}
19... e5 {[%clk 0:04:23.6]} 20. Qb3 {[%clk 0:01:33.8]} 20... Rad8 {[%clk
0:04:18.9]} 21. dxe5 {[%clk 0:01:22.2]} 21... Qxe5 {[%clk 0:04:17.1]} 22. O-O-O
{[%clk 0:01:21.9]} 22... Qxe3+ {[%clk 0:04:09.5]} 23. Kb1 {[%clk 0:01:19.9]}
23... Qb6 {[%clk 0:04:03.3]} 24. Qc2 {[%clk 0:01:16.9]} 24... g6 {[%clk
0:03:57.5]} 25. h4 {[%clk 0:01:15.7]} 25... Rc8 {[%clk 0:03:55.4]} 26. Qg2
{[%clk 0:01:10.6]} 26... d4 {[%clk 0:03:28.8]} 27. h5 {[%clk 0:01:00.1]} 27...
dxc3 {[%clk 0:03:25.9]} 28. b3 {[%clk 0:00:59.2]} 28... Ne5 {[%clk 0:03:08.8]}
29. hxg6 {[%clk 0:00:51.7]} 29... Nxg6 {[%clk 0:02:52.4]} 30. Kc2 {[%clk
0:00:43.9]} 30... Qa5 {[%clk 0:02:33.4]} 31. a4 {[%clk 0:00:37.7]} 31... Rf7
{[%clk 0:01:48.2]} 32. Rdf1 {[%clk 0:00:35.5]} 32... Qb4 {[%clk 0:01:34.7]} 33.
Rh6 {[%clk 0:00:32.7]} 33... Rg7 {[%clk 0:01:24.2]} 34. Qd5+ {[%clk 0:00:27]}
34... Kh8 {[%clk 0:01:21.7]} 35. Bxf5 {[%clk 0:00:23.5]} 35... Rf8 {[%clk
0:01:04.7]} 36. Rxg6 {[%clk 0:00:21.8]} 36... Rxg6 {[%clk 0:00:57.8]} 37. Bxg6
{[%clk 0:00:20]} 37... Rxf1 {[%clk 0:00:41]} 38. Qe5+ {[%clk 0:00:16.8]} 38...
Kg8 {[%clk 0:00:39.2]} 39. Be4 {[%clk 0:00:12.4]} 39... Rf2+ {[%clk 0:00:36.4]}
40. Kd3 {[%clk 0:00:08.2]} 40... Rd2+ {[%clk 0:00:29.9]} 41. Ke3 {[%clk
0:00:07.7]} 41... Qb6+ {[%clk 0:00:29.2]} 42. Kf3 {[%clk 0:00:06.8]} 42... Qf2+
{[%clk 0:00:24.7]} 43. Kg4 {[%clk 0:00:06.4]} 43... Qg1+ {[%clk 0:00:22.5]} 44.
Kf5 {[%clk 0:00:06.1]} 44... Qg6+ {[%clk 0:00:18.6]} 45. Kf4 {[%clk 0:00:05.1]}
45... Rf2+ {[%clk 0:00:17.5]} 46. Ke3 {[%clk 0:00:05]} 46... Qg3+ {[%clk
0:00:16.5]} 47. Kd4 {[%clk 0:00:04.9]} 47... Rd2+ {[%clk 0:00:15.5]} 48. Kc4
{[%clk 0:00:04.8]} 48... Qg7 {[%clk 0:00:13.5]} 49. Bd5+ {[%clk 0:00:04.7]}
49... Rxd5 {[%clk 0:00:10.4]} 50. Qxd5+ {[%clk 0:00:03.9]} 50... Qf7 {[%clk
0:00:09.7]} 51. Qxf7+ {[%clk 0:00:02.9]} 51... Kxf7 {[%clk 0:00:08.5]} 52. Kxc3
{[%clk 0:00:02.8]} 52... Ke6 {[%clk 0:00:07.7]} 53. Kc4 {[%clk 0:00:02.7]} 53...
Ke5 {[%clk 0:00:07]} 54. Kb4 {[%clk 0:00:02.6]} 54... h5 {[%clk 0:00:06]} 55. a5
{[%clk 0:00:02.5]} 55... h4 {[%clk 0:00:05.6]} 56. Ka4 {[%clk 0:00:02.4]} 56...
h3 {[%clk 0:00:05.5]} 57. b4 {[%clk 0:00:02.3]} 57... a6 {[%clk 0:00:04.8]} 58.
b5 {[%clk 0:00:02.2]} 58... axb5+ {[%clk 0:00:04.4]} 59. Kxb5 {[%clk 0:00:02]}
59... h2 {[%clk 0:00:04.3]} 60. Kb6 {[%clk 0:00:01.9]} 60... h1=Q {[%clk
0:00:03.9]} 61. Ka7 {[%clk 0:00:01.8]} 61... Qc6 {[%clk 0:00:03.2]} 62. a6
{[%clk 0:00:01.7]} 62... Qxa6+ {[%clk 0:00:02.8]} 63. Kb8 {[%clk 0:00:01.5]}
63... b5 {[%clk 0:00:02]} 64. Kc7 {[%clk 0:00:01.4]} 64... Qe6 {[%clk
0:00:01.3]} 0-1